bitfinex/quotes_BTCUSD_20251012
["timestamp","ask_amount","ask_price","bid_price","bid_amount"]
[1760285256321,6.89547854,114270.0,114260.0,0.05765916]
[1760285256456,6.89547854,114270.0,114260.0,0.05565916]
[1760285256663,5.66028406,114270.0,114260.0,0.05565916]
[1760285256863,6.89547854,114270.0,114260.0,0.05565916]
[1760285257062,1.89547854,114270.0,114260.0,0.05565916]
[1760285257324,0.5150547,114250.0,114240.0,0.0004]
[1760285257519,3.03152366,114250.0,114240.0,0.00054966]
[1760285257769,2.61564896,114250.0,114240.0,0.00054966]
[1760285258086,0.04608,114290.0,114280.0,0.17500875]
[1760285258239,0.14526,114300.0,114270.0,0.17501926]
[1760285258500,0.32023959,114300.0,114260.0,0.2244033]
[1760285258681,5.0,114280.0,114240.0,0.04105]
[1760285258887,0.09918,114280.0,114250.0,0.00875273]
[1760285259057,0.09918,114280.0,114250.0,0.1838065]
[1760285259058,5.0,114280.0,114250.0,0.1838065]
[1760285259255,5.0,114280.0,114260.0,0.17503895]
[1760285259256,0.09918,114280.0,114260.0,0.17503895]
[1760285259510,1.7132025,114300.0,114280.0,0.17500875]
[1760285259511,0.11770362,114300.0,114280.0,0.17500875]
[1760285259672,0.07162362,114310.0,114290.0,0.00864117]
[1760285259877,5.09918,114300.0,114260.0,0.17503895]
[1760285260073,0.04608,114310.0,114290.0,0.17499343]
[1760285260302,0.04608,114310.0,114300.0,0.17497812]
[1760285260476,0.17494926,114320.0,114300.0,0.17497812]
[1760285260906,5.1749786,114300.0,114280.0,0.04204]
[1760285261151,0.56981921,114310.0,114280.0,0.04204]
[1760285261319,0.17497969,114300.0,114280.0,0.21704864]
[1760285261517,0.66899921,114310.0,114280.0,0.21704864]
[1760285261866,0.17497994,114300.0,114280.0,0.21704821]
[1760285262537,5.32025343,114290.0,114280.0,0.04204]
[1760285262767,0.22107343,114290.0,114280.0,0.04204]
[1760285262921,5.0,114300.0,114280.0,0.04204]
[1760285263123,0.66899921,114310.0,114280.0,0.23454962]
[1760285263292,0.17498083,114300.0,114280.0,0.21704875]
[1760285263492,5.0,114300.0,114280.0,0.21704875]
[1760285263701,0.17497997,114300.0,114280.0,0.21704875]
[1760285263904,0.04604,114290.0,114280.0,0.04204]
[1760285264114,0.56979135,114310.0,114300.0,0.17497812]
[1760285264115,0.04608,114310.0,114300.0,0.17497812]
[1760285264444,0.32453163,114310.0,114280.0,0.21703343]
[1760285264829,0.26971812,114300.0,114280.0,0.04204]
[1760285265256,0.17499343,114290.0,114280.0,0.04204]
[1760285265429,0.22103343,114290.0,114280.0,0.04204]
[1760285266287,0.31577343,114290.0,114280.0,0.04204]
[1760285266899,0.31577343,114290.0,114280.0,0.04304]
[1760285267543,7.06754224,114290.0,114280.0,0.04304]
[1760285267965,0.17503938,114260.0,114250.0,0.00056379]
[1760285268395,5.60977938,114260.0,114250.0,0.00056379]
[1760285268609,5.60977938,114260.0,114240.0,0.0004]
[1760285268610,1.92682351,114250.0,114240.0,0.0004]
[1760285268812,6.97286351,114250.0,114240.0,0.0004]
[1760285269026,5.67507002,114240.0,114230.0,0.04204]
[1760285269233,5.26981002,114240.0,114230.0,0.04218966]
[1760285269492,6.68157883,114240.0,114230.0,0.04218966]
[1760285269703,7.02157883,114240.0,114230.0,0.04331745]
[1760285270378,5.60981002,114240.0,114230.0,0.04331745]
[1760285270781,7.02157883,114240.0,114230.0,0.04431745]
[1760285272038,0.17514092,114200.0,114180.0,0.04244]
[1760285272268,0.22993268,114210.0,114180.0,0.04258973]
[1760285272524,0.17514468,114200.0,114180.0,0.04258973]
[1760285272944,0.17514668,114190.0,114180.0,0.04258973]
[1760285273153,0.17513224,114200.0,114180.0,0.23455621]
[1760285273359,0.14078,114210.0,114190.0,0.17514668]
[1760285273530,0.22115744,114210.0,114190.0,0.17514668]
[1760285273801,0.30154941,114220.0,114200.0,0.17512605]
[1760285273974,0.07162362,114220.0,114210.0,0.17511601]
[1760285274403,0.18385766,114220.0,114180.0,0.26912985]
[1760285274743,0.17513166,114200.0,114180.0,0.21875129]
[1760285274941,0.17513166,114200.0,114180.0,0.04358973]
[1760285275143,0.17514668,114190.0,114180.0,0.04258973]
[1760285275344,0.31592668,114190.0,114180.0,0.04258973]
[1760285275694,0.22118668,114190.0,114180.0,0.04258973]
[1760285275862,0.31592668,114190.0,114180.0,0.04258973]
[1760285276066,0.31592668,114190.0,114180.0,0.04358973]
[1760285276920,0.31592668,114190.0,114180.0,0.04258973]
[1760285277124,5.65592668,114190.0,114180.0,0.04258973]
[1760285277581,5.65592668,114190.0,114120.0,0.04204]
[1760285277582,0.0087604,114150.0,114120.0,0.04204]
[1760285277774,0.22127876,114130.0,114120.0,0.04254053]
[1760285278013,0.29607097,114130.0,114120.0,0.04254053]
[1760285278235,0.42935511,114120.0,114110.0,8e-05]
[1760285278572,1.44030333,114120.0,114110.0,0.00022978]
[1760285278778,0.17528483,114100.0,114080.0,0.0004]
[1760285278994,0.32483821,114110.0,114080.0,0.00054987]
[1760285279209,0.17528507,114100.0,114080.0,0.00054987]
[1760285279414,0.17528507,114100.0,114080.0,0.1758651]
[1760285279621,0.17529776,114100.0,114080.0,0.1758651]
[1760285279825,0.26883776,114100.0,114080.0,0.1758637]
[1760285280037,0.23007398,114110.0,114080.0,0.18462947]
[1760285280038,0.04604,114110.0,114080.0,0.18462947]
[1760285280247,0.17527022,114110.0,114090.0,0.17529567]
[1760285280458,0.1752698,114110.0,114090.0,0.17529567]
[1760285280650,1.58054911,114130.0,114110.0,0.17526947]
[1760285280856,0.24686388,114130.0,114110.0,0.17526947]
[1760285281067,0.23384661,114150.0,114110.0,0.17526947]
[1760285281068,0.07162362,114160.0,114120.0,0.17525411]
[1760285281268,1.63809377,114150.0,114130.0,0.04185]
[1760285281390,0.30543729,114180.0,114130.0,0.04185]
[1760285281391,1.76832278,114180.0,114150.0,0.17520805]
[1760285281596,1.53450911,114160.0,114140.0,0.04208]
[1760285281794,0.17519375,114160.0,114140.0,0.2173034]
[1760285281985,1.78145354,114150.0,114140.0,0.04208]
[1760285282192,7.12195533,114150.0,114140.0,0.04208]
[1760285282392,0.1752733,114110.0,114090.0,0.08393]
[1760285282755,0.23382261,114130.0,114100.0,0.00876424]
[1760285282913,0.23382261,114130.0,114110.0,0.17526735]
[1760285282914,0.17523963,114130.0,114110.0,0.17526735]
[1760285283132,0.18400899,114140.0,114120.0,0.17525411]
[1760285283332,0.23378845,114150.0,114120.0,0.17525411]
[1760285283543,0.00050179,114150.0,114130.0,0.24238271]
[1760285283750,0.00050179,114150.0,114140.0,0.1752234]
[1760285283989,0.00050179,114150.0,114140.0,0.2591534]
[1760285284505,0.07162362,114180.0,114170.0,0.17517736]
[1760285284727,0.07162362,114180.0,114170.0,0.25874723]
[1760285285139,0.25551154,114200.0,114170.0,0.25874723]
[1760285285140,0.25551154,114200.0,114180.0,0.17515625]
[1760285285594,0.18388792,114200.0,114180.0,0.17515625]
[1760285286029,0.2966019,114220.0,114190.0,0.17514668]
[1760285286030,0.04982,114220.0,114190.0,0.17514668]
[1760285286248,6.71836633,114220.0,114180.0,0.26733435]
[1760285286473,1.64677358,114200.0,114170.0,0.08456987]
[1760285286674,1.63804751,114180.0,114170.0,0.04322987]
[1760285286890,1.97804751,114180.0,114170.0,0.04222987]
[1760285287113,0.02499999,114210.0,114170.0,1.81379624]
[1760285287346,1.46288549,114200.0,114180.0,0.001]
[1760285287566,6.68785217,114190.0,114180.0,0.001]
[1760285287828,0.56496668,114190.0,114180.0,0.001]
[1760285288046,5.65850668,114190.0,114180.0,0.001]
[1760285288263,0.56496668,114190.0,114180.0,0.001]
[1760285288479,0.17516202,114180.0,114170.0,0.04222987]
[1760285288712,0.17516202,114180.0,114170.0,0.04322987]
[1760285288927,7.07158751,114180.0,114170.0,0.04322987]
[1760285289200,5.60870202,114180.0,114170.0,0.04222987]
[1760285289369,7.06958751,114180.0,114170.0,0.04222987]
[1760285289570,7.09973941,114180.0,114170.0,1e-08]
[1760285289805,5.60670202,114180.0,114170.0,1e-08]
[1760285290260,7.06958751,114180.0,114170.0,1e-08]
[1760285290491,5.51316202,114180.0,114170.0,1e-08]
[1760285290716,5.51316202,114180.0,114170.0,0.17517737]
[1760285290717,5.0,114180.0,114170.0,0.17517737]
[1760285290953,0.34,114180.0,114170.0,0.17517737]
[1760285291183,0.23369262,114210.0,114180.0,0.17516202]
[1760285291405,0.32723262,114210.0,114190.0,0.17514668]
[1760285291606,0.18389939,114220.0,114190.0,0.17514655]
[1760285291825,1.60624549,114230.0,114200.0,0.17513134]
[1760285292028,0.08037712,114240.0,114220.0,0.17510068]
[1760285292230,0.3272007,114230.0,114190.0,0.21722655]
[1760285292450,5.26864122,114220.0,114190.0,0.21722655]
[1760285292651,1.74028174,114220.0,114190.0,0.21722519]
[1760285292922,1.69654619,114230.0,114200.0,0.17513082]
[1760285293401,1.69654619,114230.0,114200.0,0.18403734]
[1760285293582,0.17510068,114220.0,114200.0,0.18403734]
[1760285293781,0.17511601,114210.0,114200.0,0.00014996]
[1760285293941,0.09004175,114210.0,114190.0,0.05959466]
[1760285294155,0.17513134,114200.0,114190.0,0.04223007]
[1760285294352,7.16159858,114200.0,114160.0,0.00875963]
[1760285294541,0.03128632,114170.0,114160.0,0.22602554]
[1760285294751,0.05006925,114170.0,114160.0,0.22602554]
[1760285294956,0.01878293,114170.0,114160.0,0.22602554]
[1760285295186,0.01878293,114170.0,114160.0,0.21727271]
[1760285295813,0.21519365,114190.0,114180.0,0.17516202]
[1760285295814,0.02346534,114190.0,114180.0,0.17516202]
[1760285296058,0.02688808,114190.0,114180.0,0.43790202]
[1760285296435,0.00015058,114200.0,114190.0,0.17514668]
[1760285296646,0.00015058,114200.0,114190.0,0.52128668]
[1760285298490,0.58670905,114230.0,114220.0,0.17510068]
[1760285298491,0.07162362,114230.0,114220.0,0.17510068]
[1760285298693,0.07162362,114230.0,114220.0,0.26265]
[1760285298694,1.70959446,114230.0,114220.0,0.26265]
[1760285298893,0.0187309,114230.0,114220.0,0.26265]
[1760285299261,0.17508535,114230.0,114220.0,0.26265]
[1760285299477,1.68779084,114230.0,114220.0,0.26265]
[1760285299675,1.80006074,114230.0,114220.0,0.26265]
[1760285299995,7.14819262,114230.0,114220.0,0.26265]
[1760285300200,0.17517736,114170.0,114160.0,0.11370362]
[1760285300453,1.63806285,114170.0,114160.0,0.1138542]
[1760285300709,7.14015133,114170.0,114160.0,0.04223058]
[1760285300899,2.16355775,114170.0,114160.0,0.04223058]
[1760285301215,2.16355775,114170.0,114110.0,0.04208]
[1760285301216,0.17525411,114120.0,114110.0,0.04208]
[1760285301440,0.17540374,114120.0,114110.0,0.30497]
[1760285301614,0.00014963,114120.0,114110.0,0.30497]
[1760285301809,0.17540374,114120.0,114110.0,0.30497]
[1760285302002,0.17540374,114120.0,114110.0,0.48023947]
[1760285302426,0.00014963,114120.0,114110.0,0.48023947]
[1760285302743,0.00014963,114120.0,114110.0,0.52346947]
[1760285302984,0.00014963,114120.0,114110.0,0.62063947]
[1760285303351,0.00014963,114120.0,114110.0,0.61963947]
[1760285304772,0.00014963,114120.0,114110.0,0.62063947]
[1760285305276,0.00014963,114120.0,114110.0,0.70916899]
[1760285305480,0.00014963,114120.0,114110.0,0.7169434]
[1760285305688,1e-08,114120.0,114110.0,2.06922057]
[1760285305875,1e-08,114120.0,114110.0,2.19422055]
[1760285306075,1e-08,114120.0,114110.0,2.19322055]
[1760285306312,1e-08,114120.0,114110.0,2.19522055]
[1760285306683,1e-08,114120.0,114110.0,1.18294338]
[1760285306888,1e-08,114120.0,114110.0,2.19522055]
[1760285307269,1e-08,114120.0,114110.0,2.22377224]
[1760285307594,1e-08,114120.0,114110.0,1.0559434]
[1760285308003,1e-08,114120.0,114110.0,0.62841388]
[1760285308410,1e-08,114120.0,114110.0,0.62641388]
[1760285308677,1e-08,114120.0,114110.0,0.7159434]
[1760285308808,1e-08,114120.0,114110.0,1.15594339]
[1760285309020,1e-08,114120.0,114110.0,1.18294338]
[1760285309348,0.07162362,114160.0,114150.0,0.17520805]
[1760285309569,0.07162362,114190.0,114180.0,0.17516202]
[1760285309691,0.07177353,114190.0,114180.0,0.30408]
[1760285309900,0.00014991,114190.0,114180.0,0.35454]
[1760285310308,0.00014991,114190.0,114180.0,0.52970202]
[1760285311955,0.00014991,114190.0,114180.0,0.53170202]
[1760285313401,0.07162362,114240.0,114220.0,0.17510068]
[1760285313602,0.07162362,114240.0,114230.0,0.17508535]
[1760285313603,0.07177347,114240.0,114230.0,0.17508535]
[1760285313816,0.00014985,114240.0,114230.0,0.47979535]
[1760285314026,0.00014985,114240.0,114230.0,0.43771535]
[1760285315296,0.00014985,114240.0,114230.0,0.52951535]
[1760285315535,0.07162362,114270.0,114260.0,0.17503938]
[1760285315746,0.07212293,114270.0,114260.0,0.57118938]
[1760285316195,0.00049931,114270.0,114260.0,0.47938938]
[1760285316968,0.17552337,114270.0,114260.0,0.26256]
[1760285317171,0.00049931,114270.0,114260.0,0.43759938]
[1760285317569,0.17552337,114270.0,114260.0,0.26256]
[1760285317770,0.00049931,114270.0,114260.0,0.43759938]
[1760285317974,0.17552337,114270.0,114260.0,0.43759938]
[1760285318185,0.00049931,114270.0,114260.0,0.43759938]
[1760285318395,0.17552337,114270.0,114260.0,0.43759938]
[1760285318799,0.17552337,114270.0,114260.0,0.26256]
[1760285319003,0.17552337,114270.0,114260.0,0.43759938]
[1760285319317,0.00049931,114270.0,114260.0,0.52939938]
[1760285319550,0.17552337,114270.0,114260.0,0.43759938]
[1760285319746,0.17552337,114270.0,114240.0,0.2755977]
[1760285319747,5.67508535,114230.0,114220.0,0.00056399]
[1760285319976,6.57373252,114230.0,114220.0,0.00056399]
[1760285320187,1.66730252,114230.0,114220.0,0.00056399]
[1760285320387,6.66730252,114230.0,114220.0,0.00056399]
[1760285320792,5.65502535,114230.0,114220.0,0.00056399]
[1760285321113,0.65502535,114230.0,114220.0,0.00071384]
[1760285321522,0.31502535,114230.0,114220.0,0.00071384]
[1760285322562,5.31502535,114230.0,114220.0,0.00071384]
[1760285323243,6.66730252,114230.0,114220.0,0.00071384]
[1760285323993,1.66730252,114230.0,114220.0,0.00071384]
[1760285324194,6.66730252,114230.0,114220.0,0.00071384]
[1760285324553,6.66730252,114230.0,114170.0,0.04179]
[1760285324554,0.17516202,114180.0,114170.0,0.04179]
[1760285324770,0.17516202,114180.0,114170.0,0.26289991]
[1760285324972,5.76721202,114180.0,114170.0,0.26289991]
[1760285325187,5.26721202,114180.0,114170.0,0.26572122]
[1760285325391,0.17516202,114180.0,114170.0,0.26572122]
[1760285325595,0.17514668,114190.0,114170.0,0.44089858]
[1760285325802,0.17516202,114180.0,114170.0,0.44007727]
[1760285326222,0.17516202,114180.0,114170.0,0.26489991]
[1760285326626,0.17516202,114180.0,114170.0,0.26772122]
[1760285326795,0.17516202,114180.0,114170.0,0.44289858]
[1760285326995,0.17516202,114180.0,114170.0,0.26572122]
[1760285327416,0.17516202,114180.0,114170.0,0.26672122]
[1760285327802,0.22050668,114190.0,114170.0,0.44189858]
[1760285328169,0.26721202,114180.0,114170.0,0.26389991]
[1760285328591,0.26721202,114180.0,114170.0,0.26672122]
[1760285328879,0.26721202,114180.0,114170.0,0.26572122]
[1760285329016,0.17516202,114180.0,114170.0,0.44089858]
[1760285329226,0.17516202,114180.0,114170.0,0.26572122]
[1760285329754,0.17516202,114180.0,114170.0,0.44089858]
[1760285330200,1.67359041,114200.0,114180.0,0.17516202]
[1760285330201,0.32131324,114200.0,114180.0,0.17516202]
[1760285330419,0.29213474,114210.0,114180.0,0.17516202]
[1760285330616,0.17514668,114190.0,114180.0,0.43789971]
[1760285330900,0.04536,114210.0,114190.0,0.17514668]
[1760285331061,0.17510068,114220.0,114200.0,0.2259679]
[1760285331257,0.17510068,114220.0,114200.0,0.43783104]
[1760285331433,0.17511601,114210.0,114200.0,0.2627]
[1760285331638,0.65252601,114210.0,114200.0,0.2627]
[1760285331862,0.56047601,114210.0,114200.0,0.2627]
[1760285332062,0.51511601,114210.0,114200.0,0.2627]
[1760285332264,0.17511601,114210.0,114200.0,0.2637]
[1760285332888,0.17511601,114210.0,114200.0,0.43883134]
[1760285333298,0.17510068,114220.0,114200.0,0.43883134]
[1760285333500,0.17511601,114210.0,114200.0,0.43783134]
[1760285333860,0.1751007,114220.0,114200.0,0.53530134]
[1760285334067,0.1751007,114220.0,114210.0,0.17511601]
[1760285334291,0.1751007,114220.0,114210.0,0.26267]
[1760285334549,1.40047024,114220.0,114210.0,0.26267]
[1760285334754,1.49252024,114220.0,114210.0,0.26267]
[1760285334959,6.83252024,114220.0,114210.0,0.26267]
[1760285335436,6.83252024,114220.0,114210.0,0.26367]
[1760285335695,5.6071507,114220.0,114210.0,0.26367]
[1760285335920,6.83252024,114220.0,114210.0,0.26367]
[1760285336360,5.5151007,114220.0,114210.0,0.26367]
[1760285336569,0.6071507,114220.0,114210.0,0.26267]
[1760285337020,0.5151007,114220.0,114210.0,0.26267]
[1760285337243,5.6071507,114220.0,114210.0,0.26267]
[1760285338670,6.83252024,114220.0,114210.0,0.26367]
[1760285339434,5.6071507,114220.0,114210.0,0.26367]
[1760285339646,6.83252024,114220.0,114210.0,0.26367]
[1760285339998,6.83252024,114220.0,114210.0,0.26267]
[1760285340209,6.88231024,114220.0,114210.0,0.26267]
[1760285340411,5.6569407,114220.0,114210.0,0.26267]
[1760285340613,1.88231024,114220.0,114210.0,0.26267]
[1760285340870,0.04979,114220.0,114210.0,0.26267]
[1760285341078,0.17510068,114220.0,114210.0,0.26267]
[1760285341301,0.17510068,114220.0,114210.0,0.26323406]
[1760285341515,6.88151022,114220.0,114210.0,0.26323406]
[1760285341723,0.17514668,114190.0,114180.0,0.04208]
[1760285341931,0.22493668,114190.0,114180.0,0.04208]
[1760285342151,0.04979,114220.0,114200.0,0.17513134]
[1760285342356,5.0,114220.0,114210.0,0.17511601]
[1760285342569,0.22489153,114220.0,114200.0,0.21692134]
[1760285342777,0.22489153,114220.0,114210.0,0.17511601]
[1760285342980,1.29692217,114220.0,114210.0,0.17511601]
[1760285343400,1.29692217,114220.0,114210.0,0.17611601]
[1760285344065,0.32488086,114230.0,114210.0,0.17611601]
[1760285344285,0.00014971,114230.0,114210.0,0.30981601]
[1760285344494,0.00014971,114230.0,114220.0,0.30909068]
[1760285346821,0.00014971,114230.0,114220.0,0.13399]
[1760285347030,0.00014971,114230.0,114220.0,0.21718068]
[1760285347253,0.00014971,114230.0,114220.0,0.30909068]
[1760285347459,0.00014971,114230.0,114220.0,0.57173068]
[1760285348056,0.00014971,114230.0,114220.0,0.57273068]
[1760285349024,0.30014971,114230.0,114220.0,0.57273068]
[1760285349247,1.3721812,114230.0,114220.0,0.26264]
[1760285349470,0.30014971,114230.0,114220.0,0.57173068]
[1760285350004,0.30014971,114230.0,114220.0,0.57273068]
[1760285350405,0.30014971,114230.0,114220.0,0.57173068]
[1760285350815,0.30014971,114230.0,114180.0,0.22596944]
[1760285350816,0.17513445,114200.0,114180.0,0.08387]
[1760285351021,6.72821817,114190.0,114180.0,0.04208]
[1760285351247,6.72821817,114190.0,114150.0,0.03084]
[1760285351248,0.17519271,114160.0,114150.0,0.03084]
[1760285351452,0.17519271,114160.0,114150.0,0.29364]
[1760285351453,1.2472242,114160.0,114150.0,0.29364]
[1760285351808,1.2472242,114160.0,114150.0,0.2628]
[1760285351809,0.17519271,114160.0,114150.0,0.2628]
[1760285351964,0.51517754,114170.0,114150.0,0.48008691]
[1760285352163,0.18394593,114180.0,114160.0,0.17519271]
[1760285352366,0.2965603,114190.0,114170.0,0.17517736]
[1760285352367,1.14365511,114190.0,114170.0,0.17517736]
[1760285352708,1.24716283,114200.0,114180.0,0.18329497]
[1760285352916,1.07203149,114200.0,114180.0,0.43890202]
[1760285353035,1.30572116,114210.0,114190.0,0.17627506]
[1760285353237,1.30572116,114210.0,114190.0,0.17514668]
[1760285353473,0.52390945,114220.0,114210.0,0.17511601]
[1760285353672,0.17510068,114220.0,114210.0,0.43778601]
[1760285353878,0.17510068,114220.0,114210.0,0.26267]
[1760285354116,1.5559424,114230.0,114210.0,0.43778601]
[1760285354318,1.3721812,114230.0,114210.0,0.43778601]
[1760285354686,0.17510068,114220.0,114210.0,0.43778601]
[1760285355318,0.17510068,114220.0,114210.0,0.26267]
[1760285355535,0.17510068,114220.0,114210.0,0.43778601]
[1760285355739,1.07203149,114220.0,114210.0,0.43778601]
[1760285355949,0.17510068,114220.0,114210.0,0.43878601]
[1760285356600,1.24713217,114220.0,114210.0,0.43878601]
[1760285357012,6.67838217,114220.0,114210.0,0.26367]
[1760285357191,7.75041366,114220.0,114210.0,0.26367]
[1760285357636,6.67838217,114220.0,114210.0,0.26367]
[1760285358059,6.67838217,114220.0,114160.0,0.03084]
[1760285358060,0.17517736,114170.0,114160.0,0.03084]
[1760285358266,1.72824885,114170.0,114160.0,0.03084]
[1760285358681,0.56496736,114170.0,114160.0,0.03084]
[1760285358885,0.51517736,114170.0,114160.0,0.03084]
[1760285359100,1.58720885,114170.0,114160.0,0.03366169]
[1760285359309,1.58720885,114170.0,114160.0,0.0338116]
[1760285359310,1.72824885,114170.0,114160.0,0.0338116]
[1760285359701,6.72824885,114170.0,114160.0,0.0338116]
[1760285359935,6.72824885,114170.0,114160.0,0.0029716]
[1760285360573,0.51520805,114150.0,114140.0,0.04208]
[1760285360790,6.63702954,114150.0,114140.0,0.04208]
[1760285361203,6.72827954,114150.0,114140.0,0.04208]
[1760285361411,5.65624805,114150.0,114140.0,0.04208]
[1760285361621,6.72827954,114150.0,114140.0,0.04208]
[1760285361839,5.65624805,114150.0,114140.0,0.04208]
[1760285362044,6.72827954,114150.0,114140.0,0.04208]
[1760285362673,6.72827954,114150.0,114090.0,0.04208]
[1760285362894,6.72827954,114150.0,114080.0,0.03124]
[1760285362895,0.1753002,114090.0,114080.0,0.03124]
[1760285363112,0.1753002,114090.0,114080.0,0.03174179]
[1760285363315,0.17529142,114100.0,114080.0,0.04793704]
[1760285363536,0.1753002,114090.0,114080.0,0.20705661]
[1760285363748,0.17529142,114100.0,114090.0,0.1753002]
[1760285363974,1.25607979,114110.0,114090.0,0.1753002]
[1760285364189,1.25607979,114110.0,114090.0,0.2173802]
[1760285364393,0.57384796,114120.0,114090.0,0.3092902]
[1760285364600,0.17526955,114110.0,114100.0,0.17528372]
[1760285364836,1.29708329,114120.0,114100.0,0.17528372]
[1760285365042,1.24729329,114120.0,114100.0,0.17528372]
[1760285365243,1.24729329,114120.0,114080.0,0.03174179]
[1760285365244,0.17528483,114100.0,114080.0,0.03174179]
[1760285365448,1.24733169,114090.0,114080.0,0.03174179]
[1760285365670,7.80040318,114090.0,114060.0,0.0004]
[1760285365881,0.22512093,114070.0,114050.0,2.0004]
[1760285366101,6.07203149,114070.0,114050.0,2.30960472]
[1760285366309,1.24737779,114060.0,114050.0,2.00054963]
[1760285366515,0.2665963,114060.0,114050.0,2.00054963]
[1760285366933,1.07203149,114070.0,114050.0,2.21770131]
[1760285367150,1.24737779,114060.0,114050.0,2.00054963]
[1760285367766,0.1753463,114060.0,114050.0,2.00054963]
[1760285368180,0.17533149,114070.0,114050.0,2.00054963]
[1760285368387,1.24737779,114060.0,114050.0,2.00054963]
[1760285368996,1.24737779,114060.0,114050.0,2.00154963]
[1760285369664,1.68641779,114060.0,114050.0,2.00154963]
[1760285370453,7.85844927,114060.0,114050.0,1.97540963]
[1760285370648,7.75844928,114060.0,114050.0,1.97540963]
[1760285370867,2.75844928,114060.0,114050.0,1.97540963]
[1760285371307,6.68641779,114060.0,114050.0,1.97540963]
[1760285371494,6.68641779,114060.0,114050.0,1.97440963]
[1760285371921,6.68641779,114060.0,114050.0,1.98062468]
[1760285372112,1.24737779,114060.0,114050.0,1.98062468]
[1760285372357,1.34543779,114060.0,114050.0,1.98062468]
[1760285372498,6.34543779,114060.0,114050.0,1.98062468]
[1760285372915,6.34543779,114060.0,114050.0,1.51742569]
[1760285372916,5.74355819,114060.0,114050.0,1.51742569]
[1760285373129,5.6134063,114060.0,114050.0,1.51742569]
[1760285373332,7.75746928,114060.0,114050.0,1.51742569]
[1760285373538,6.68543779,114060.0,114050.0,1.51742569]
[1760285374742,1.68543779,114060.0,114050.0,1.51742569]
[1760285374917,1.58737779,114060.0,114050.0,1.51742569]
[1760285375149,1.68543779,114060.0,114050.0,1.51742569]
[1760285375572,6.68543779,114060.0,114050.0,1.51742569]
[1760285375744,7.75746928,114060.0,114050.0,1.51742569]
[1760285376219,6.68543779,114060.0,114050.0,1.51742569]
[1760285377188,1.68543779,114060.0,114050.0,1.51742569]
[1760285377376,7.75746928,114060.0,114050.0,1.51742569]
[1760285377575,6.68543779,114060.0,114050.0,1.51742569]
[1760285377769,2.75746928,114060.0,114050.0,1.51742569]
[1760285378010,7.75746928,114060.0,114050.0,1.51742569]
[1760285378584,6.68543779,114060.0,114050.0,1.51742569]
[1760285378793,1.68543779,114060.0,114050.0,1.51742569]
[1760285379045,6.68543779,114060.0,114050.0,1.51742569]
[1760285379446,1.24737779,114060.0,114050.0,1.51742569]
[1760285379651,1.34543779,114060.0,114050.0,1.51742569]
[1760285379903,6.68543779,114060.0,114050.0,1.51742569]
[1760285380086,1.68543779,114060.0,114050.0,1.51742569]
[1760285380457,0.28216983,114080.0,114060.0,0.1753378]
[1760285380655,0.1753463,114060.0,114050.0,1.69276185]
[1760285380856,1.07203149,114070.0,114060.0,0.17533871]
[1760285381073,0.17533093,114070.0,114050.0,1.82894488]
[1760285381411,1.25611375,114080.0,114050.0,1.82894488]
[1760285381412,0.18408226,114080.0,114070.0,0.17533093]
[1760285381615,0.17533093,114070.0,114050.0,1.73326488]
[1760285381751,1.24737779,114060.0,114050.0,1.73326488]
[1760285381954,6.24737779,114060.0,114050.0,1.51121064]
[1760285382157,6.68543779,114060.0,114050.0,1.51121064]
[1760285382368,1.68543779,114060.0,114050.0,1.51121064]
[1760285382574,7.75746928,114060.0,114050.0,1.51121064]
[1760285382778,1.68543779,114060.0,114050.0,1.51121064]
[1760285382982,1.58737779,114060.0,114050.0,1.51121064]
[1760285383648,1.41203149,114060.0,114050.0,1.68657232]
[1760285383827,1.58737779,114060.0,114050.0,1.51121064]
[1760285384003,1.07203149,114060.0,114050.0,1.68657232]
[1760285384207,1.24737779,114060.0,114050.0,1.51121064]
[1760285385490,1.14301779,114060.0,114050.0,1.51121064]
[1760285385690,1.48301779,114060.0,114050.0,1.51121064]
[1760285385827,6.48301779,114060.0,114050.0,1.51121064]
[1760285386624,7.75504928,114060.0,114050.0,1.51121064]
[1760285386842,6.68301779,114060.0,114050.0,1.51121064]
[1760285387040,2.75504928,114060.0,114050.0,1.51742569]
[1760285387284,7.78520118,114060.0,114050.0,1.51742569]
[1760285388552,1.68301779,114060.0,114050.0,1.51742569]
[1760285388774,6.68301779,114060.0,114050.0,1.51742569]
[1760285389440,1.68301779,114060.0,114050.0,1.51742569]
[1760285389622,6.68301779,114060.0,114050.0,1.51742569]
[1760285389831,5.6109863,114060.0,114050.0,1.51742569]
[1760285390032,6.68301779,114060.0,114050.0,1.51742569]
[1760285390244,6.73064779,114060.0,114050.0,1.51742569]
[1760285392040,2.83283118,114060.0,114050.0,1.51742569]
[1760285392245,7.83283118,114060.0,114050.0,1.51742569]
[1760285392649,7.86763117,114060.0,114050.0,0.81985239]
[1760285392853,7.94263117,114060.0,114050.0,0.81985239]
[1760285393104,1.77059969,114060.0,114050.0,0.81985239]
[1760285393402,5.6684163,114060.0,114050.0,0.81985239]
[1760285393611,6.74044779,114060.0,114050.0,0.81985239]
[1760285393767,0.14327,114060.0,114050.0,0.99521407]
[1760285393968,1.11966149,114060.0,114050.0,0.99521407]
[1760285394171,0.14327,114060.0,114050.0,0.81985239]
[1760285394383,6.39064779,114060.0,114050.0,0.81985239]
[1760285394584,0.04763,114060.0,114050.0,0.99521407]
[1760285394797,1.11966149,114080.0,114070.0,0.17533093]
[1760285395007,1.29497767,114080.0,114060.0,0.1753463]
[1760285395220,0.14543,114090.0,114070.0,0.17533093]
[1760285395577,0.30330269,114100.0,114090.0,0.1753002]
[1760285395578,5.54763,114100.0,114090.0,0.1753002]
[1760285395697,5.0,114100.0,114090.0,0.2160902]
[1760285395896,0.17526977,114110.0,114090.0,0.2160902]
[1760285396106,6.3905867,114100.0,114080.0,0.21743537]
[1760285396331,1.3905873,114100.0,114090.0,0.1753002]
[1760285396532,1.69467733,114110.0,114090.0,0.1753002]
[1760285396753,0.17528483,114100.0,114090.0,0.00014963]
[1760285396963,1.79031733,114110.0,114090.0,0.17544983]
[1760285397162,0.31855483,114100.0,114090.0,0.00014963]
[1760285397416,2.12156892,114100.0,114090.0,0.00114963]
[1760285397796,7.12156892,114100.0,114090.0,0.00114963]
[1760285398001,0.53400969,114100.0,114090.0,0.00114963]
[1760285398203,5.70929452,114100.0,114080.0,0.04212]
[1760285398417,5.5153463,114060.0,114050.0,0.81348771]
[1760285398573,2.02599039,114060.0,114050.0,0.81348771]
[1760285398782,7.14053178,114060.0,114050.0,0.81348771]
[1760285399589,7.14068128,114060.0,114050.0,0.81348771]
[1760285399806,6.96533498,114060.0,114050.0,0.81348771]
[1760285400017,1.96533498,114060.0,114050.0,0.81348771]
[1760285400209,2.14068128,114060.0,114050.0,0.81348771]
[1760285400390,0.67766719,114060.0,114050.0,0.81348771]
[1760285400609,2.14068128,114060.0,114050.0,0.81348771]